Workbook

Sheet Cover Page
A5: Montana-Dakota Utilities Co.
A6: Attachment O
A7: Actual Reported Costs for Twelve Months Ended December 31, 2013
A10: Revised August 28, 2014
A11: Change in Attachment GG Revenue Requirement (Page 3, line 30)

Sheet True-Up - REVISED
A1: Montana-Dakota Utilities Co.
A2: MISO Attachment O True-Up
A3: Twelve Months Ended December 31, 2013 - Revised
A6: Annual Transmission Revenue Requirement (ATRR) True-Up
B7: Historic Year Actual ATRR | E7: 18573008.76
B8: Historic Year Projected ATRR | E8: 22223301
B9: Historic Year ATRR True-Up (Line 1 - Line 2) | E9: =E7-E8 -> -3650292.245
A11: Footnote FF: Calculation of Prior Year Divisor True-Up
B12: Historic Year Actual Divisor | E12: 735558 | F12: 1/
B13: Projected Year Divisor | E13: 738755
C14: Difference between Historic Year & Project Yr Divisor (Line 4 - Line 5) | E14: =E12-E13 -> -3197
B15: Prior Year Projected Annual Cost ($ per kw per yr.) | E15: 30.082
B16: Projected Year Divisor True-Up * Prior Year Projected Annual Cost | E16: =ROUND(E14*E15,0) -> -96172
A18: Total
B19: ATRR True-Up | E19: =E9 -> -3650292.245
B20: Divisor True-Up | E20: =E16 -> -96172
B21: Total 2013 True-Up | E21: =SUM(E19:E20) -> -3746464.245
A23: Interest on Historic Year True-Up 2/
B24: Average Monthly FERC Interest Rate on Refunds
B25: Interest for 24 Months
A27: Total True-Up | E27: =ROUND(E21+E25,0) -> -3746464
A30: 1/ For purposes of calculating the historic divisor for the divisor true-up, Montana-Dakota included
B31: the REC load.
C32: Montana-Dakota | E32: 486814
C33: REC | E33: 248744
C34: Total KW | E34: =SUM(E32:E33) -> 735558
A35: 2/ Interest will be applied in the Projected 2015 Attachment O submitted in September 2014.

Sheet Attachment O - REVISED
L2: Attachment O
L3: page 1 of 5
C5: Formula Rate - Non-Levelized | E5: Rate Formula Template | J5: For the 12 months ended 12/31/13
E6: Utilizing FERC Form 1 Data
E8: Montana-Dakota Utilities Co.
A10: Line | J10: Allocated | N10: Workpaper
A11: No. | J11: Amount | N11: Reference #
A12: 1 | C12: GROSS REVENUE REQUIREMENT (page 3, line 31) | J12: =+J225 -> 22683895.71
C15: REVENUE CREDITS | D15: (Note T) | E15: Total | G15: Allocator
A16: 2 | C16: Account No. 454 | D16: (page 4, line 34) | E16: =J303 -> 1807970 | G16: TP | H16: =J251 -> 0.9524172064 | J16: =+H16*E16 -> 1721941.737
A17: 3 | C17: Account No. 456.1 | D17: (page 4, line 37) | E17: =J310 -> 2508297 | G17: =+G16 -> TP | H17: 0.9524172064 | J17: =+H17*E17 -> 2388945.221
A18: 4 | C18: Revenues from Grandfathered Interzonal Transactions | E18: 0 | G18: TP | H18: 0.9524172064 | J18: =+H18*E18 -> 0
A19: 5 | C19: Revenues from service provided by the ISO at a discount | E19: 0 | G19: TP | H19: 0.9524172064 | J19: =+H19*E19 -> 0
A20: 6 | C20: TOTAL REVENUE CREDITS (sum lines 2-5) | J20: =SUM(J16:J19) -> 4110886.958
A22: 6a | C22: Historic Year Actual ATRR
A23: 6b | C23: Projected ATRR from Prior Year | D23: Input from Prior Year
A24: 6c | C24: Prior Year ATRR True-Up | D24: (line 6a - line 6b) | J24: =J22-J23 -> 0
A25: 6d | C25: Prior Year Divisor True-Up | D25: (Note FF) | J25: =E392 -> 0
A26: 6e | C26: Interest on Prior Year True-Up
A28: 7 | C28: NET REVENUE REQUIREMENT | D28: (line 1 - line 6 + line 6c through 6e) | J28: =+J12-J20+J24+J25+J26 -> 18573008.76
C31: DIVISOR
A32: 8 | C32: Average of 12 coincident system peaks for requirements (RQ) service | H32: (Note A) | J32: 486814 | N32: 18
A33: 9 | C33: Plus 12 CP of firm bundled sales over one year not in line 8 | H33: (Note B) | J33: 0
A34: 10 | C34: Plus 12 CP of Network Load not in line 8 | H34: (Note C) | J34: 0
A35: 11 | C35: Less 12 CP of firm P-T-P over one year (enter negative) | H35: (Note D) | J35: 0
A36: 12 | C36: Plus Contract Demand of firm P-T-P over one year | J36: 0
A37: 13 | C37: Less Contract Demand from Grandfathered Interzonal Transactions over one year (enter negative) (Note S) | J37: 0
A38: 14 | C38: Less Contract Demands from service over one year provided by ISO at a discount (enter negative) | J38: 0
A39: 15 | C39: Divisor (sum lines 8-14) | J39: =SUM(J32:J38) -> 486814
A41: 16 | C41: Annual Cost ($/kW/Yr) | D41: (line 7 / line 15) | E41: =IF(J39>0,J28/J39,0) -> 38.15216644
A42: 17 | C42: Network & P-to-P Rate ($/kW/Mo) | D42: (line 16 / 12) | E42: =+E41/12 -> 3.179347204
E44: Peak Rate | J44: Off-Peak Rate
A46: 18 | C46: Point-To-Point Rate ($/kW/Wk) | D46: (line 16 / 52; line 16 / 52) | E46: =+E41/52 -> 0.7336955085 | J46: =+E41/52 -> 0.7336955085
A47: 19 | C47: Point-To-Point Rate ($/kW/Day) | D47: (line 16 / 260; line 16 / 365) | E47: =+E41/260 -> 0.1467391017 | F47: Capped at weekly rate | J47: =+E41/365 -> 0.1045264834
A48: 20 | C48: Point-To-Point Rate ($/MWh) | D48: (line 16 / 4,160; line 16 / 8,760*1000) | E48: =+E41/4160*1000 -> 9.171193857 | F48: Capped at weekly and daily rates | J48: =+E41/8760*1000 -> 4.355270142
A50: 21 | C50: FERC Annual Charge($/MWh) | D50: (Note E) | E50: 0 | F50: Short Term | J50: =E50 -> 0 | K50: Short Term
A51: 22 | E51: 0 | F51: Long Term | J51: =E51 -> 0 | K51: Long Term
L79: Attachment O
L80: page 2 of 5
C82: Formula Rate - Non-Levelized | E82: Rate Formula Template | J82: =J5 -> For the 12 months ended 12/31/13
E83: Utilizing FERC Form 1 Data
E85: =E8 -> Montana-Dakota Utilities Co.
C86: (1) | D86: (2) | E86: (3) | H86: (4) | J86: (5)
D87: Form No. 1 | J87: Transmission | N87: Workpaper
A88: Line | D88: Page, Line, Col. | E88: Company Total | G88: Allocator | J88: (Col 3 times Col 4) | N88: Reference #
A89: No. | C89: RATE BASE:
C91: GROSS PLANT IN SERVICE (Note AA, Note DD)
A92: 1 | C92: Production | D92: 205.46.g | E92: 471677490 | G92: NA | N92: 1, 1b
A93: 2 | C93: Transmission | D93: 207.58.g | E93: 181842812 | G93: TP | H93: =J251 -> 0.9524172064 | J93: =+H93*E93 -> 173190223 | N93: 1, 1b
A94: 3 | C94: Distribution | D94: 207.75.g | E94: 242842041 | G94: NA | N94: 1, 1b
A95: 4 | C95: General & Intangible | D95: 205.5.g & 207.99.g | E95: =22753986+8726909 -> 31480895 | G95: W/S | H95: =J269 -> 0.1507003893 | J95: =+H95*E95 -> 4744183.132 | N95: 1, 1b
A96: 5 | C96: Common | D96: 356.1 | E96: 97091208 | G96: CE | H96: =L274 -> 0.1113824695 | J96: =+H96*E96 -> 10814258.51 | N96: 1, 1a, 1b
A97: 6 | C97: TOTAL GROSS PLANT (sum lines 1-5) | E97: =SUM(E92:E96) -> 1024934446 | G97: GP= | H97: =IF(J97>0,J97/E97,0) -> 0.1841568164 | J97: =SUM(J92:J96) -> 188748664.6
C99: ACCUMULATED DEPRECIATION (Note AA, Note DD)
A100: 7 | C100: =+C92 -> Production | D100: 219.20-24.c | E100: 245754882 | G100: =+G92 -> NA | H100: =+H92 ->  | N100: 1, 2, 2b
A101: 8 | C101: =+C93 -> Transmission | D101: 219.25.c | E101: 87058348 | G101: =+G93 -> TP | H101: 0.9524172064 | J101: =+H101*E101 -> 82915868.59 | N101: 1, 2, 2b
A102: 9 | C102: =+C94 -> Distribution | D102: 219.26.c | E102: 106448504 | G102: NA | N102: 1, 2, 2b
A103: 10 | C103: =+C95 -> General & Intangible | D103: 219.28.c & 200.21.c | E103: =9724512+6520498 -> 16245010 | G103: W/S | H103: 0.1507003893 | J103: =+H103*E103 -> 2448129.331 | N103: 1, 2, 2b
A104: 11 | C104: =+C96 -> Common | D104: 356.1 | E104: 41503012 | G104: CE | H104: 0.1113824695 | J104: =+H104*E104 -> 4622707.967 | N104: 1, 2, 2a, 2b
A105: 12 | C105: TOTAL ACCUM. DEPRECIATION (sum lines 7-11) | E105: =SUM(E100:E104) -> 497009756 | J105: =SUM(J100:J104) -> 89986705.89
C107: NET PLANT IN SERVICE (Note DD)
A108: 13 | C108: =+C100 -> Production | D108: (line 1- line 7) | E108: =E92-E100 -> 225922608
A109: 14 | C109: =+C101 -> Transmission | D109: (line 2- line 8) | E109: =E93-E101 -> 94784464 | J109: =J93-J101 -> 90274354.41
A110: 15 | C110: =+C102 -> Distribution | D110: (line 3 - line 9) | E110: =E94-E102 -> 136393537
A111: 16 | C111: =+C103 -> General & Intangible | D111: (line 4 - line 10) | E111: =E95-E103 -> 15235885 | J111: =J95-J103 -> 2296053.801
A112: 17 | C112: =+C104 -> Common | D112: (line 5 - line 11) | E112: =E96-E104 -> 55588196 | J112: =J96-J104 -> 6191550.544
A113: 18 | C113: TOTAL NET PLANT (sum lines 13-17) | E113: =SUM(E108:E112) -> 527924690 | G113: NP= | H113: =IF(J113>0,J113/E113,0) -> 0.1870758474 | J113: =SUM(J108:J112) -> 98761958.75
A115: 18a | C115: 100% CWIP Recovery for Commission Approved Order
C116: No. 679 Transmission Projects (Note DD) | D116: 216.b | E116: 1407658 | G116: N/A | H116: 1 | J116: =E116 -> 1407658 | N116: 15
C118: ADJUSTMENTS TO RATE BASE (Note F, Note EE)
A119: 19 | C119: Account No. 281 (enter negative) | D119: 273.8.k | E119: 0 | G119: =+G100 -> NA | H119: zero | J119: 0
A120: 20 | C120: Account No. 282 (enter negative) | D120: 275.2.k | E120: -138035371 | G120: NP | H120: =+H113 -> 0.1870758474 | J120: =E120*H120 -> -25823084 | N120: 3, 3a
A121: 21 | C121: Account No. 283 (enter negative) | D121: 277.9.k | E121: -17053870 | G121: NP | H121: =+H120 -> 0.1870758474 | J121: =E121*H121 -> -3190367.182 | N121: 3, 3a
A122: 22 | C122: Account No. 190 | D122: 234.8.c | E122: 18030471 | G122: =+G121 -> NP | H122: =+H121 -> 0.1870758474 | J122: =E122*H122 -> 3373065.642 | N122: 3, 3a
A123: 23 | C123: Account No. 255 (enter negative) | D123: 267.8.h | E123: 0 | G123: NP | H123: =+H121 -> 0.1870758474 | J123: =E123*H123 -> 0
A124: 23a | C124: RESERVED FOR FUTURE USE
A125: 23b | C125: Unamortized Balance of Abandoned Plant | D125: (Note CC, Note DD) | E125: 0 | G125: N/A | H125: 1 | J125: =E125*H125 -> 0
A126: 24 | C126: TOTAL ADJUSTMENTS (sum lines 19- 23b) | E126: =SUM(E119:E125) -> -137058770 | J126: =SUM(J119:J125) -> -25640385.54
A128: 25 | C128: LAND HELD FOR FUTURE USE (Note DD) | D128: 214.x.d (Note G) | E128: 0 | G128: =+G101 -> TP | H128: =+H101 -> 0.9524172064 | J128: =+H128*E128 -> 0
C130: WORKING CAPITAL (Note H)
A131: 26 | C131: CWC | D131: calculated | E131: =+E181/8 -> 3297649.125 | J131: =+J181/8 -> 1195318.528
A132: 27 | C132: Materials & Supplies (Note G, Note DD) | D132: 227.8.c & .16.c | E132: 350980 | G132: TE | H132: =J261 -> 0.825480835 | J132: =+H132*E132 -> 289727.2635 | N132: 4
A133: 28 | C133: Prepayments (Account 165, Note DD) | D133: 111.57.c | E133: 1864263 | G133: GP | H133: =+H97 -> 0.1841568164 | J133: =+H133*E133 -> 343316.7391 | N133: 5
A134: 29 | C134: TOTAL WORKING CAPITAL (sum lines 26 - 28) | E134: =E131+E132+E133 -> 5512892.125 | J134: =J131+J132+J133 -> 1828362.531
A136: 30 | C136: RATE BASE (sum lines 18, 18a, 24, 25, & 29) | E136: =+E134+E128+E126+E113+E116 -> 397786470.1 | J136: =+J134+J128+J126+J113+J116 -> 76357593.74
L159: Attachment O
L160: page 3 of 5
C162: Formula Rate - Non-Levelized | E162: Rate Formula Template | J162: =J5 -> For the 12 months ended 12/31/13
E163: Utilizing FERC Form 1 Data
E165: =E8 -> Montana-Dakota Utilities Co.
C166: (1) | D166: (2) | E166: (3) | H166: (4) | J166: (5)
A168: Line | D168: Form No. 1 | J168: Transmission | N168: Workpaper
A169: No. | D169: Page, Line, Col. | E169: Company Total | G169: Allocator | J169: (Col 3 times Col 4) | N169: Reference #
C171: O&M (Note BB)
A172: 1 | C172: Transmission | D172: 321.112.b | E172: 10601838 | G172: TE | H172: =J261 -> 0.825480835 | J172: =+H172*E172 -> 8751614.084 | N172: 6
A173: 1a | C173: Less LSE Expenses included in Transmission O&M Accounts (Note V) | E173: 489820 | H173: 1 | J173: =+H173*E173 -> 489820 | N173: 6
A174: 2 | C174: Less Account 565 | D174: 321.96.b | E174: 1705765 | G174: TE | H174: =+H172 -> 0.825480835 | J174: =+H174*E174 -> 1408076.316 | N174: 6
A175: 3 | C175: A&G | D175: 323.197.b | E175: 18554979 | G175: W/S | H175: =+H103 -> 0.1507003893 | J175: 2796242.559 | N175: 7
A176: 4 | C176: Less FERC Annual Fees | E176: 187914 | G176: =+G175 -> W/S | H176: =+H175 -> 0.1507003893 | J176: 28318.71295 | N176: 8
A177: 5 | C177: Less EPRI & Reg. Comm. Exp. & Non-safety Ad. (Note I) | E177: 392125 | G177: =+G176 -> W/S | H177: =+H176 -> 0.1507003893 | J177: 59093.39015 | N177: 8
A178: 5a | C178: Plus Transmission Related Reg. Comm. Exp. (Note I) | E178: 0 | G178: =+G172 -> TE | H178: =+H172 -> 0.825480835 | J178: =+H178*E178 -> 0
A179: 6 | C179: Common | D179: =+D104 -> 356.1 | E179: 0 | G179: CE | H179: =+H104 -> 0.1113824695 | J179: 0
A180: 7 | C180: Transmission Lease Payments | E180: 0 | H180: 1 | J180: 0
A181: 8 | C181: TOTAL O&M (sum lines 1, 3, 5a, 6, 7 less lines 1a, 2, 4, 5) | E181: =+E172-E173-E174+E175-E176-E177+E178+E179+E180 -> 26381193 | J181: =+J172-J173-J174+J175-J176-J177+J178+J179+J180 -> 9562548.224
C183: DEPRECIATION AND AMORTIZATION EXPENSE (Note AA)
A184: 9 | C184: =+C172 -> Transmission | D184: 336.7.b | E184: 3336016 | G184: TP | H184: =+H128 -> 0.9524172064 | J184: =+H184*E184 -> 3177279.039 | N184: 9
A185: 9a | C185: Abandoned Plant Amortization | D185: (Note CC) | E185: 0 | G185: N/A | H185: 1 | J185: =+H185*E185 -> 0
A186: 10 | C186: General & Intangible | D186: 336.10.f & 336.1.f | E186: 948145 | G186: W/S | H186: =+H175 -> 0.1507003893 | J186: =+H186*E186 -> 142885.8206 | N186: 9
A187: 11 | C187: =+C179 -> Common | D187: 336.11.b | E187: 1120695 | G187: CE | H187: =+H179 -> 0.1113824695 | J187: =+H187*E187 -> 124825.7766 | N187: 9
A188: 12 | C188: TOTAL DEPRECIATION (Sum lines 9 - 11) | E188: =SUM(E184:E187) -> 5404856 | J188: =SUM(J184:J187) -> 3444990.636
C190: TAXES OTHER THAN INCOME TAXES (Note J)
C191: LABOR RELATED
A192: 13 | C192: Payroll | D192: 263.i | E192: 2116136 | G192: W/S | H192: =+H186 -> 0.1507003893 | J192: =+H192*E192 -> 318902.519 | N192: 9
A193: 14 | C193: Highway and vehicle | D193: =+D192 -> 263.i | E193: 2596 | G193: =+G192 -> W/S | H193: =+H192 -> 0.1507003893 | J193: =+H193*E193 -> 391.2182106 | N193: 9
A194: 15 | C194: PLANT RELATED
A195: 16 | C195: Property | D195: 263.i | E195: 6229955 | G195: GP | H195: =+H97 -> 0.1841568164 | J195: =+H195*E195 -> 1147288.679 | N195: 9
A196: 17 | C196: Gross Receipts | D196: 263.i | E196: -60205 | G196: =+G119 -> NA | H196: zero | J196: 0 | N196: 9
A197: 18 | C197: Other | D197: =+D196 -> 263.i | E197: 1122898 | G197: =+G195 -> GP | H197: =+H195 -> 0.1841568164 | J197: =+H197*E197 -> 206789.3209 | N197: 9
A198: 19 | C198: Payments in lieu of taxes | E198: 92988 | G198: GP | H198: =+H195 -> 0.1841568164 | J198: =+H198*E198 -> 17124.37405 | N198: 9
A199: 20 | C199: TOTAL OTHER TAXES (sum lines 13 - 19) | E199: =SUM(E192:E198) -> 9504368 | J199: =SUM(J192:J198) -> 1690496.112
C202: INCOME TAXES | D202: (Note K)
A203: 21 | C203: T=1 - {[(1 - SIT) * (1 - FIT)] / (1 - SIT * FIT * p)} = | E203: =IF(E349>0,1-(((1-E350)*(1-E349))/(1-E350*E349*E351)),0) -> 0.381135
A204: 22 | C204: CIT=(T/1-T) * (1-(WCLTD/R)) = | E204: =IF(J293>0,(E203/(1-E203))*(1-J290/J293),0) -> 0.4444337689
C205: where WCLTD=(page 4, line 27) and R= (page 4, line 30)
C206: and FIT, SIT & p are as given in footnote K.
A207: 23 | C207: 1 / (1 - T) = (from line 21) | E207: =IF(E203>0,1/(1-E203),0) -> 1.615861294
A208: 24 | C208: Amortized Investment Tax Credit (266.8f) (enter negative) | E208: -46505
A210: 25 | C210: Income Tax Calculation = line 22 * line 28 | E210: =E204*E214 -> 15495100.36 | G210: NA | J210: =E204*J214 -> 2974381.149
A211: 26 | C211: ITC adjustment (line 23 * line 24) | E211: =E207*E208 -> -75145.6295 | G211: NP | H211: =H113 -> 0.1870758474 | J211: =H211*E211 -> -14057.93232
A212: 27 | C212: Total Income Taxes | D212: (line 25 plus line 26) | E212: =+E210+E211 -> 15419954.73 | J212: =+J210+J211 -> 2960323.216
A214: 28 | C214: RETURN | E214: =+$J293*E136 -> 34864813.25 | G214: NA | J214: =+$J293*J136 -> 6692518.338
C215: [ Rate Base (page 2, line 30) * Rate of Return (page 4, line 30)]
A217: 29 | C217: REV. REQUIREMENT (sum lines 8, 12, 20, 27, 28) | E217: =+E214+E212+E199+E188+E181 -> 91575184.98 | J217: =+J214+J212+J199+J188+J181 -> 24350876.53
A218: 30 | C218: LESS ATTACHMENT GG ADJUSTMENT [Attachment GG, page 2, line 3, column 10] (Note W)
C219: [Revenue Requirement for facilities included on page 2, line 2, and also
C220: included in Attachment GG] | E220: 1478836 | J220: =E220 -> 1478836
A222: 30a | C222: LESS ATTACHMENT MM ADJUSTMENT [Attachment MM, page 2, line 3, column 14] (Note Y)
C223: [Revenue Requirement for facilities included on page 2, line 2, and also
C224: included in Attachment MM] | E224: 188144.8125 | J224: =+E224 -> 188144.8125
A225: 31 | C225: REV. REQUIREMENT TO BE COLLECTED UNDER ATTACHMENT O | E225: =+E217-E220-E224 -> 89908204.16 | J225: =+J217-J220-J224 -> 22683895.71
C226: (line 29 - line 30 - line30a)
L235: Attachment O
L236: page 4 of 5
C238: Formula Rate - Non-Levelized | E238: Rate Formula Template | J238: =J5 -> For the 12 months ended 12/31/13
E239: Utilizing FERC Form 1 Data
E241: =E8 -> Montana-Dakota Utilities Co.
D242: SUPPORTING CALCULATIONS AND NOTES
A243: Line
A244: No. | C244: TRANSMISSION PLANT INCLUDED IN ISO RATES | N244: Workpaper
N245: Reference #
A246: 1 | C246: Total transmission plant (page 2, line 2, column 3) | J246: =E93 -> 181842812
A247: 2 | C247: Less transmission plant excluded from ISO rates (Note M) | J247: 0
A248: 3 | C248: Less transmission plant included in OATT Ancillary Services (Note N ) | J248: 8652589 | N248: 10
A249: 4 | C249: Transmission plant included in ISO rates (line 1 less lines 2 & 3) | J249: =J246-J247-J248 -> 173190223
A251: 5 | C251: Percentage of transmission plant included in ISO Rates (line 4 divided by line 1) | I251: TP= | J251: =IF(J246>0,J249/J246,0) -> 0.9524172064
N252: Please fill out info requested in the box below
C253: TRANSMISSION EXPENSES
N254: Schedule 1 Recoverable Expenses
A255: 6 | C255: Total transmission expenses (page 3, line 1, column 3) | J255: =E172 -> 10601838
A256: 7 | C256: Less transmission expenses included in OATT Ancillary Services (Note L) | J256: 1412993 | N256: 1412993 | O256: Acct 561.1 - 561.3, 561.BA included in Line 7
A257: 8 | C257: Included transmission expenses (line 6 less line 7) | J257: =+J255-J256 -> 9188845 | N257: 707859 | O257: Acct 561.BA for Schedule 24
N258: =N256-N257 -> 705134 | O258: Acct 561.1 - 561.3 available for Schedule 1
A259: 9 | C259: Percentage of transmission expenses after adjustment (line 8 divided by line 6) | J259: =IF(J255>0,J257/J255,0) -> 0.8667218835 | O259: Revenue Credits for Sched 1 Acct 561.1 - 561.3
A260: 10 | C260: Percentage of transmission plant included in ISO Rates (line 5) | I260: TP | J260: =J251 -> 0.9524172064 | N260: 0 | O260: transactions <1 yr
A261: 11 | C261: Percentage of transmission expenses included in ISO Rates (line 9 times line 10) | I261: TE= | J261: =+J260*J259 -> 0.825480835 | N261: 0 | O261: non-firm
N262: 52567 | O262: transactions w/ load not in divisor
C263: WAGES & SALARY ALLOCATOR (W&S) | N263: =SUM(N260:N262) -> 52567 | O263: total Revenue Credits
D264: Form 1 Reference | E264: $ | F264: TP | H264: Allocation | N264: =N258-N263 -> 652567 | O264: Net Schedule 1 Expenses (Acct 561.1-561.3 minus Credits)
A265: 12 | C265: Production | D265: 354.20.b | E265: 7937303 | F265: 0 | H265: =E265*F265 -> 0 | N265: 12
A266: 13 | C266: Transmission | D266: 354.21.b | E266: 3367715 | F266: =+J251 -> 0.9524172064 | H266: =E266*F266 -> 3207469.712 | N266: 12
A267: 14 | C267: Distribution | D267: 354.23.b | E267: 8033499 | F267: 0 | H267: =E267*F267 -> 0 | J267: W&S Allocator | N267: 12
A268: 15 | C268: Other | D268: 354.24,25,26.b | E268: 1945235 | F268: 0 | H268: =E268*F268 -> 0 | J268: ($ / Allocation) | N268: 12
A269: 16 | C269: Total (sum lines 12-15) | E269: =SUM(E265:E268) -> 21283752 | H269: =SUM(H265:H268) -> 3207469.712 | I269: = | J269: =IF(H269>0,H269/E269,0) -> 0.1507003893 | K269: = | L269: WS
C271: COMMON PLANT ALLOCATOR (CE) (Note O)
E272: $ | H272: % Electric | J272: =+J267 -> W&S Allocator
A273: 17 | C273: Electric | D273: 200.3.c | E273: 1057102842 | H273: (line 17 / line 20) | J273: (line 16) | L273: CE | N273: 13
A274: 18 | C274: Gas | D274: 201.3.d | E274: 373156431 | H274: =IF(E276>0,E273/E276,0) -> 0.7390987508 | I274: * | J274: =J269 -> 0.1507003893 | K274: = | L274: =J274*H274 -> 0.1113824695 | N274: 13
A275: 19 | C275: Water | D275: 201.3.e | E275: 0
A276: 20 | C276: Total (sum lines 17 - 19) | E276: =E273+E274+E275 -> 1430259273
C278: RETURN (R) | J278: $
A279: 21 | D279: Long Term Interest (117, sum of 62.c through 66.c) | J279: =18140295+189843+719510 -> 19049648 | N279: 16
A281: 22 | D281: Preferred Dividends (118.29c) (positive number) | J281: 685003 | N281: 16
C283: Development of Common Stock:
A284: 23 | D284: Proprietary Capital (112.16.c) (Note DD) | J284: =2687923159+15000000 -> 2702923159 | N284: 16
A285: 24 | D285: Less Preferred Stock (line 28) (Note DD) | J285: =-E291 -> -15000000
A286: 25 | D286: Less Account 123.1 (225.42.(g)) (enter negative) (Note DD) | J286: -2294529877 | N286: 16
A287: 26 | D287: Common Stock | E287: (sum lines 23-25) (Note DD) | J287: =+J284+J285+J286 -> 393393282
H288: Cost
E289: $ | F289: % | H289: (Note P) | J289: Weighted
A290: 27 | C290: Long Term Debt (112, sum of 18.c through 21.c) (Note DD) | E290: 372428596 | F290: =IF($E$293>0,E290/$E$293,0) -> 0.4769699806 | H290: =IF(E290>0,J279/E290,0) -> 0.05114979946 | J290: =H290*F290 -> 0.02439691886 | K290: =WCLTD | N290: 16
A291: 28 | C291: Preferred Stock (112.3.c) (Note DD) | E291: 15000000 | F291: =IF($E$293>0,E291/$E$293,0) -> 0.0192105273 | H291: =IF(E291>0,J281/E291,0) -> 0.04566686667 | J291: =H291*F291 -> 0.0008772845886 | N291: 16
A292: 29 | C292: Common Stock (line 26) (Note DD) | E292: =J287 -> 393393282 | F292: =IF($E$293>0,E292/$E$293,0) -> 0.5038194921 | H292: 0.1238 | J292: =H292*F292 -> 0.06237285312
A293: 30 | C293: Total (sum lines 27-29) (Note DD) | E293: =E292+E291+E290 -> 780821878 | J293: =SUM(J290:J292) -> 0.08764705657 | K293: =R
C296: REVENUE CREDITS
J297: Load
C298: ACCOUNT 447 (SALES FOR RESALE) | E298: (310-311) | F298: (Note Q)
A299: 31 | C299: a. Bundled Non-RQ Sales for Resale (311.x.h) | J299: 0
A300: 32 | C300: b. Bundled Sales for Resale included in Divisor on page 1 | J300: 0
A301: 33 | C301: Total of (a)-(b) | J301: =+J299-J300 -> 0
A303: 34 | C303: ACCOUNT 454 (RENT FROM ELECTRIC PROPERTY) (Note R) | J303: 1807970 | N303: 17
... 82 more rows
